fUSD/lending_fUSD_20240517
["ID","MTS","AMOUNT","RATE_DAILY","PERIOD"]
[327269511,1715952650984,-2459.97408473,0.0001285,2]
[327269512,1715952650994,-4328.92927816,0.0001286,2]
[327269532,1715953290444,150.0,6.961e-05,2]
[327269533,1715953290468,8.33,6.961e-05,2]
[327269535,1715953307335,705.05,8.219e-05,2]
[327269540,1715953356331,235.28,8.499e-05,2]
[327269550,1715953452163,150.0,8.499e-05,2]
[327269551,1715953452186,150.0,8.499e-05,2]
[327269552,1715953452209,150.0,8.499e-05,2]
[327269553,1715953452234,150.0,8.499e-05,2]
[327269554,1715953452256,150.0,8.499e-05,2]
[327269555,1715953452277,150.0,8.499e-05,2]
[327269556,1715953452301,70.08187611,8.499e-05,2]
[327269559,1715953470146,79.91812389,8.499e-05,2]
[327269560,1715953470167,150.0,8.499e-05,2]
[327269561,1715953470189,40.05848876,8.499e-05,2]
[327269572,1715953531914,109.94151124,8.506e-05,2]
[327269573,1715953531935,291.67,8.506e-05,2]
[327269574,1715953533350,-199.01606139,8.506e-05,2]
[327269575,1715953533908,-198.10115353,8.506e-05,2]
[327269577,1715953541832,155.0,8.505e-05,2]
[327269579,1715953552028,3799.82,8.412e-05,2]
[327269580,1715953553631,155.0,8.499e-05,2]
[327269581,1715953558075,155.0,8.505e-05,2]
[327269582,1715953558993,207.3487045,8.505e-05,2]
[327269585,1715953566318,1000.0,8.444e-05,2]
[327269589,1715953580923,155.0,8.505e-05,2]
[327269590,1715953582677,24079.23892194,8.505e-05,2]
[327269597,1715953623900,500.0,8.035e-05,2]
[327269602,1715953657707,23890.0,7.994e-05,2]
[327269604,1715953666597,20909.88494785,8.035e-05,2]
[327269615,1715953748719,250.0,8.219e-05,2]
[327269622,1715953794997,200.0,8.035e-05,2]
[327269626,1715953809889,2859.38,8.035e-05,2]
[327269671,1715953831991,-35.82127384,8.506e-05,2]
[327269672,1715953832000,-306.18884519,8.518e-05,2]
[327269674,1715953832011,-343.87988097,8.518e-05,2]
[327269676,1715953832023,-346.12011903,8.518e-05,2]
[327269677,1715953832033,-1213.97790017,8.519e-05,2]
[327269678,1715953832043,-326.64067795,8.519e-05,2]
[327269679,1715953832053,-2185.6405926,8.52e-05,2]
[327269680,1715953832064,-643.21413352,8.521e-05,2]
[327269681,1715953832073,-2328.05220736,8.522e-05,2]
[327269682,1715953832086,-169.23,8.555e-05,2]
[327269683,1715953832096,-6168.22933536,8.599e-05,2]
[327269684,1715953832107,-37129.56647586,8.599e-05,2]
[327269685,1715953832117,-1283.98392734,8.6e-05,2]
[327269686,1715953832126,-2585.41,8.611e-05,2]
[327269687,1715953832136,-158.69,8.715e-05,2]
[327269688,1715953832145,-250.0,8.751e-05,2]
[327269689,1715953832154,-158.69,8.76e-05,2]
[327269690,1715953832164,-158.69,8.806e-05,2]
[327269691,1715953832174,-158.69,8.851e-05,2]
[327269692,1715953832184,-158.69,8.897e-05,2]
[327269693,1715953832193,-158.69,8.942e-05,2]
[327269694,1715953832203,-157.69210687,8.97e-05,2]
[327269695,1715953832213,-266.24547519,8.975e-05,2]
[327269696,1715953832223,-158.69,8.988e-05,2]
[327269697,1715953832233,-155.0,8.989e-05,2]
[327269698,1715953832243,-207.23801847,8.995e-05,2]
[327269699,1715953832253,-158.69,9.033e-05,2]
[327269700,1715953832264,-158.69,9.078e-05,2]
[327269701,1715953832273,-158.69,9.124e-05,2]
[327269702,1715953832283,-158.69,9.169e-05,2]
[327269703,1715953832292,-306.4069,9.303e-05,2]
[327269704,1715953832302,-207.78292029,9.303e-05,2]
[327269705,1715953832311,-155.75559124,9.303e-05,2]
[327269706,1715953832321,-229.23591349,9.304e-05,2]
[327269707,1715953832334,-383468.61647077,9.305e-05,2]
[327269708,1715953832343,-30225.744,9.305e-05,2]
[327269709,1715953832353,-1000.0,9.499e-05,2]
[327269710,1715953832362,-164.47,0.0001019,2]
[327269711,1715953832377,-705.05,0.0001041,2]
[327269712,1715953832388,-1000.0,0.00010555,2]
[327269713,1715953832397,-180.54,0.00010829,2]
[327269714,1715953832407,-180.54,0.00010883,2]
[327269715,1715953832416,-5953.1,0.00010959,2]
[327269716,1715953832426,-2551.15,0.00010959,2]
[327269717,1715953832436,-3000.0,0.00010959,2]
[327269718,1715953832446,-805.68,0.00010959,2]
[327269719,1715953832455,-156.13,0.0001096,2]
[327269720,1715953832466,-7920.15009504,0.00011,2]
[327269721,1715953832475,-166.45,0.00011065,2]
[327269723,1715953832486,-25805.2084352,0.0001118,2]
[327269725,1715953832496,-2585.41,0.00011351,2]
[327269727,1715953832506,-5791.1358,0.00011597,2]
[327269729,1715953832516,-5298.4147,0.00011597,2]
[327269730,1715953832526,-500.0,0.00011599,2]
[327269731,1715953832536,-200.0,0.000116,4]
[327269732,1715953832546,-1000.0,0.0001161,2]
[327269733,1715953832555,-32119.1699992,0.000117,2]
[327269734,1715953832566,-500.0,0.000117,4]
[327269735,1715953832575,-1373.47507708,0.00011798,2]
[327269736,1715953832588,-800.0,0.000118,4]
[327269737,1715953832599,-489.54298967,0.00011888,2]
[327269738,1715953832614,-151.0,0.00011898,2]
[327269739,1715953832624,-151.0,0.00011898,2]
[327269740,1715953832633,-151.0,0.00011898,2]
[327269741,1715953832643,-151.0,0.00011898,2]
[327269742,1715953832654,-151.0,0.00011898,2]
[327269743,1715953832664,-151.0,0.00011898,2]
[327269744,1715953832674,-151.0,0.00011898,2]
[327269745,1715953832684,-151.0,0.00011898,2]
[327269746,1715953832697,-151.0,0.00011898,2]
[327269747,1715953832707,-151.0,0.00011898,2]
[327269748,1715953832717,-151.0,0.00011898,2]
[327269749,1715953832727,-176.629961,0.00011898,2]
[327269750,1715953832737,-151.0,0.00011898,2]
[327269751,1715953832747,-151.0,0.00011898,2]
[327269752,1715953832758,-151.0,0.00011898,2]
[327269753,1715953832768,-151.0,0.00011898,2]
[327269754,1715953832778,-151.0,0.00011898,2]
[327269755,1715953832789,-151.0,0.00011898,2]
[327269756,1715953832799,-151.0,0.00011898,2]
[327269757,1715953832809,-151.0,0.00011898,2]
[327269758,1715953832819,-151.0,0.00011898,2]
[327269759,1715953832830,-199.841229,0.00011898,2]
[327269760,1715953832841,-842.189225,0.00011898,2]
[327269761,1715953832851,-842.189225,0.00011898,2]
[327269762,1715953832860,-842.189225,0.00011898,2]
[327269763,1715953832870,-842.189225,0.00011898,2]
[327269764,1715953832879,-842.189225,0.00011898,2]
[327269765,1715953832888,-842.189225,0.00011898,2]
[327269766,1715953832898,-842.189225,0.00011898,2]
[327269767,1715953832908,-842.189225,0.00011898,2]
[327269768,1715953832918,-842.189225,0.00011898,2]
[327269769,1715953832928,-842.189225,0.00011898,2]
[327269770,1715953833217,-151.0,0.00011898,2]
[327269771,1715953833227,-842.189225,0.00011898,2]
[327269772,1715953833237,-151.0,0.00011898,2]
[327269773,1715953833247,-842.189225,0.00011898,2]
[327269774,1715953833257,-151.0,0.00011898,2]
[327269775,1715953833267,-151.0,0.00011898,2]
[327269776,1715953833276,-151.0,0.00011898,2]
[327269777,1715953833285,-151.0,0.00011898,2]
[327269778,1715953833295,-151.0,0.00011898,2]
[327269779,1715953833305,-151.0,0.00011898,2]
[327269780,1715953833315,-151.0,0.00011898,2]
[327269781,1715953833324,-151.0,0.00011898,2]
[327269782,1715953833336,-151.0,0.00011898,2]
[327269783,1715953833345,-214.829607,0.00011898,2]
[327269784,1715953833355,-151.0,0.00011898,2]
[327269785,1715953833365,-151.0,0.00011898,2]
[327269786,1715953833374,-151.0,0.00011898,2]
[327269787,1715953833383,-151.0,0.00011898,2]
[327269788,1715953833392,-151.0,0.00011898,2]
[327269789,1715953833402,-151.0,0.00011898,2]
[327269790,1715953833412,-151.0,0.00011898,2]
[327269791,1715953833422,-151.0,0.00011898,2]
[327269792,1715953833431,-1224.624918,0.00011898,2]
[327269793,1715953833440,-1224.624918,0.00011898,2]
[327269794,1715953833449,-1224.624918,0.00011898,2]
[327269795,1715953833458,-1224.624918,0.00011898,2]
[327269796,1715953833467,-1224.624918,0.00011898,2]
[327269797,1715953833477,-1224.624918,0.00011898,2]
[327269798,1715953833486,-180.588753,0.00011898,2]
[327269799,1715953833495,-180.588753,0.00011898,2]
[327269800,1715953833504,-180.588753,0.00011898,2]
[327269801,1715953833514,-180.588753,0.00011898,2]
[327269802,1715953833523,-151.0,0.00011898,2]
[327269803,1715953833532,-180.588753,0.00011898,2]
[327269804,1715953833542,-151.0,0.00011898,2]
[327269805,1715953833552,-151.0,0.00011898,2]
[327269806,1715953833561,-180.588753,0.00011898,2]
[327269807,1715953833571,-151.0,0.00011898,2]
[327269808,1715953833582,-151.0,0.00011898,2]
[327269809,1715953833592,-1224.624918,0.00011898,2]
[327269810,1715953833602,-151.0,0.00011898,2]
[327269811,1715953833612,-1224.624918,0.00011898,2]
[327269812,1715953833623,-151.0,0.00011898,2]
[327269813,1715953833633,-1224.624918,0.00011898,2]
[327269814,1715953833642,-1224.624918,0.00011898,2]
[327269815,1715953833651,-1224.624918,0.00011898,2]
[327269816,1715953833661,-1224.624918,0.00011898,2]
[327269817,1715953833671,-180.588753,0.00011898,2]
[327269818,1715953833680,-180.588753,0.00011898,2]
[327269819,1715953833691,-180.588753,0.00011898,2]
[327269820,1715953833701,-180.588753,0.00011898,2]
[327269821,1715953833710,-151.0,0.00011898,2]
[327269822,1715953833720,-180.588753,0.00011898,2]
[327269823,1715953833729,-151.0,0.00011898,2]
[327269824,1715953833739,-180.588753,0.00011898,2]
[327269825,1715953833748,-151.0,0.00011898,2]
[327269826,1715953833757,-151.0,0.00011898,2]
[327269827,1715953833767,-151.0,0.00011898,2]
[327269828,1715953833776,-151.0,0.00011898,2]
[327269829,1715953833785,-151.0,0.00011898,2]
[327269830,1715953833795,-151.0,0.00011898,2]
[327269831,1715953833804,-151.0,0.00011898,2]
[327269832,1715953833814,-151.0,0.00011898,2]
[327269833,1715953833824,-151.0,0.00011898,2]
[327269834,1715953833843,-151.0,0.00011898,2]
[327269835,1715953833854,-151.0,0.00011898,2]
[327269836,1715953833864,-210.49213,0.00011898,2]
[327269837,1715953833874,-151.0,0.00011898,2]
[327269838,1715953833884,-151.0,0.00011898,2]
[327269839,1715953833893,-151.0,0.00011898,2]
[327269840,1715953833903,-151.0,0.00011898,2]
[327269841,1715953833913,-156.759496,0.00011898,2]
[327269842,1715953833923,-193.72792922,0.00011898,2]
[327269843,1715953833962,-3460.03,0.00011898,2]
[327269844,1715953833975,-4578.849279,0.00011898,2]
[327269845,1715953833984,-570.567445,0.00011898,2]
[327269846,1715953833995,-570.567445,0.00011898,2]
[327269847,1715953834005,-570.567445,0.00011898,2]
[327269848,1715953834014,-570.567445,0.00011898,2]
[327269849,1715953834024,-8232.60720819,0.00011898,2]
[327269850,1715953834033,-570.567445,0.00011898,2]
[327269851,1715953834043,-570.567445,0.00011898,2]
[327269852,1715953834053,-570.567445,0.00011898,2]
[327269853,1715953834062,-570.567445,0.00011898,2]
[327269854,1715953834072,-570.567445,0.00011898,2]
[327269855,1715953834083,-570.567445,0.00011898,2]
[327269856,1715953834093,-8232.60720819,0.00011898,2]
[327269857,1715953834102,-570.567445,0.00011898,2]
[327269858,1715953834112,-570.567445,0.00011898,2]
[327269859,1715953834122,-151.0,0.00011898,2]
[327269860,1715953834132,-297.063249,0.00011898,2]
[327269861,1715953834142,-8232.60720819,0.00011898,2]
[327269862,1715953834152,-8232.60720819,0.00011898,2]
[327269863,1715953834162,-8232.60720819,0.00011898,2]
[327269864,1715953834171,-8232.60720819,0.00011898,2]
[327269865,1715953834182,-151.0,0.00011898,2]
[327269866,1715953834192,-151.0,0.00011898,2]
[327269867,1715953834201,-152.69947,0.00011898,2]
[327269868,1715953834211,-152.69947,0.00011898,2]
[327269869,1715953834220,-152.69947,0.00011898,2]
[327269870,1715953834230,-152.69947,0.00011898,2]
[327269871,1715953834240,-152.69947,0.00011898,2]
[327269872,1715953834250,-152.69947,0.00011898,2]
[327269873,1715953834261,-152.69947,0.00011898,2]
[327269874,1715953834270,-152.69947,0.00011898,2]
[327269875,1715953834280,-152.69947,0.00011898,2]
[327269876,1715953834289,-152.69947,0.00011898,2]
[327269877,1715953834300,-151.0,0.00011898,2]
[327269878,1715953834309,-151.0,0.00011898,2]
[327269879,1715953834319,-151.0,0.00011898,2]
[327269880,1715953834329,-151.0,0.00011898,2]
[327269881,1715953834341,-151.0,0.00011898,2]
[327269882,1715953834351,-151.0,0.00011898,2]
[327269883,1715953834360,-1373.475077,0.00011898,2]
[327269884,1715953834370,-5708.65018125,0.00011898,7]
[327269885,1715953834380,-1100.0,0.000119,4]
[327269886,1715953834390,-1373.475077,0.00011998,2]
[327269887,1715953834399,-8232.60720819,0.00012079,2]
[327269888,1715953834409,-1373.475077,0.00012099,2]
[327269889,1715953834419,-321.56825341,0.00012116,2]
[327269890,1715953834429,-151.0,0.00012144,2]
[327269891,1715953834439,-151.0,0.00012144,2]
[327269892,1715953834449,-842.189225,0.00012144,2]
[327269893,1715953834459,-842.189225,0.00012144,2]
[327269894,1715953834468,-151.0,0.00012144,2]
[327269895,1715953834478,-151.0,0.00012144,2]
[327269896,1715953834487,-1224.624918,0.00012144,2]
[327269897,1715953834497,-180.588753,0.00012144,2]
[327269898,1715953834506,-1224.624918,0.00012144,2]
[327269899,1715953834515,-180.588753,0.00012144,2]
[327269900,1715953834525,-570.567445,0.00012144,2]
[327269901,1715953834535,-570.567445,0.00012144,2]
[327269902,1715953834545,-152.69947,0.00012144,2]
[327269903,1715953834554,-152.69947,0.00012144,2]
[327269904,1715953834564,-1373.475077,0.00012199,2]
[327269905,1715953834573,-172.03572244,0.00012203,2]
[327269906,1715953834585,-10000.0,0.00012228,2]
[327269907,1715953834594,-1000.0,0.00012228,2]
[327269908,1715953834605,-342.56709147,0.00012228,2]
[327269909,1715953834617,-6777.26120682,0.00012228,2]
[327269910,1715953834626,-1373.475077,0.00012299,2]
[327269911,1715953834636,-1400.0,0.000123,4]
[327269912,1715953834647,-151.0,0.00012303,2]
[327269913,1715953834656,-242.049358,0.00012303,2]
[327269914,1715953834665,-151.0,0.00012303,2]
[327269915,1715953834675,-367.301771,0.00012303,2]
[327269916,1715953834686,-367.301771,0.00012303,2]
[327269917,1715953834695,-151.0,0.00012303,2]
[327269918,1715953834705,-151.0,0.00012303,2]
[327269919,1715953834715,-151.0,0.00012303,2]
[327269920,1715953834724,-151.0,0.00012303,2]
[327269921,1715953834734,-252.707903,0.00012303,2]
[327269922,1715953834749,-252.707903,0.00012303,2]
[327269923,1715953834759,-183.502474,0.00012315,2]
[327269924,1715953834769,-169.616618,0.00012315,2]
[327269925,1715953834780,-858.507705,0.00012315,2]
[327269926,1715953834790,-5173.76119,0.00012315,2]
[327269927,1715953834800,-154.757108,0.00012315,2]
[327269928,1715953834810,-2183.639369,0.00012315,2]
[327269929,1715953834819,-156.13,0.00012318,2]
[327269930,1715953834829,-500.0,0.00012328,2]
[327269931,1715953834839,-502.08526643,0.00012328,2]
[327269932,1715953834848,-502.66145338,0.00012328,2]
[327269933,1715953834858,-1067.27,0.00012328,2]
[327269934,1715953834868,-1067.27,0.00012328,2]
[327269935,1715953834878,-1067.27,0.00012328,2]
[327269936,1715953834887,-1067.27,0.00012328,2]
[327269937,1715953834897,-151.0,0.00012328,2]
[327269938,1715953834907,-285.893883,0.00012328,2]
[327269939,1715953834916,-505.56952533,0.00012328,2]
[327269940,1715953834926,-151.0,0.00012328,2]
[327269941,1715953834935,-151.0,0.00012328,2]
[327269942,1715953834945,-151.0,0.00012328,2]
[327269943,1715953834954,-151.0,0.00012328,2]
[327269944,1715953834964,-1080.74,0.00012328,2]
[327269945,1715953834974,-1080.74,0.00012328,2]
[327269946,1715953834984,-1080.74,0.00012328,2]
[327269947,1715953834994,-1080.74,0.00012328,2]
[327269948,1715953835004,-151.0,0.00012328,2]
[327269949,1715953835014,-706.12,0.00012328,2]
[327269950,1715953835023,-706.12,0.00012328,2]
[327269951,1715953835033,-706.12,0.00012328,2]
[327269952,1715953835042,-706.12,0.00012328,2]
[327269953,1715953835052,-500.0,0.00012328,2]
[327269954,1715953835062,-500.0,0.00012328,2]
[327269955,1715953835071,-500.0,0.00012328,2]
[327269956,1715953835082,-500.0,0.00012328,2]
[327269957,1715953835091,-500.0,0.00012328,2]
[327269958,1715953835101,-385.07736017,0.00012328,2]
[327269959,1715953835111,-771.79,0.00012328,2]
[327269960,1715953835121,-771.79,0.00012328,2]
[327269961,1715953835131,-771.79,0.00012328,2]
[327269962,1715953835140,-771.79,0.00012328,2]
[327269963,1715953835150,-500.0,0.00012328,2]
[327269964,1715953835160,-500.0,0.00012328,2]
[327269965,1715953835169,-500.0,0.00012328,2]
[327269966,1715953835179,-500.0,0.00012328,2]
[327269967,1715953835189,-500.0,0.00012328,2]
[327269968,1715953835199,-500.0,0.00012328,2]
[327269969,1715953835208,-500.0,0.00012328,2]
[327269970,1715953835218,-500.0,0.00012328,2]
[327269971,1715953835227,-500.0,0.00012328,2]
[327269972,1715953835237,-243.09332696,0.00012328,2]
[327269973,1715953835246,-367.301771,0.00012328,2]
[327269974,1715953835256,-213.93311703,0.00012328,2]
[327269975,1715953835266,-367.301771,0.00012328,2]
[327269976,1715953835276,-333.57526748,0.00012328,2]
[327269977,1715953835285,-500.0,0.00012328,2]
[327269978,1715953835295,-500.0,0.00012328,2]
[327269979,1715953835305,-569.523662,0.00012328,2]
[327269980,1715953835315,-500.0,0.00012328,2]
[327269981,1715953835324,-154.85,0.00012328,2]
[327269982,1715953835336,-500.0,0.00012328,2]
[327269983,1715953835346,-500.0,0.00012328,2]
[327269984,1715953835356,-500.0,0.00012328,2]
[327269985,1715953835366,-500.0,0.00012328,2]
[327269986,1715953835377,-500.0,0.00012328,2]
[327269987,1715953835386,-500.0,0.00012328,2]
[327269988,1715953835396,-500.0,0.00012328,2]
[327269989,1715953835406,-432.72,0.00012328,2]
[327269990,1715953835416,-500.0,0.00012328,2]
[327269991,1715953835426,-500.0,0.00012328,2]
[327269992,1715953835436,-556.52180558,0.00012328,2]
[327269993,1715953835446,-519.17163784,0.00012328,2]
[327269994,1715953835456,-500.0,0.00012328,2]
[327269995,1715953835466,-500.0,0.00012328,2]
[327269996,1715953835475,-500.0,0.00012328,2]
[327269997,1715953835485,-151.0,0.00012328,2]
[327269998,1715953835495,-500.0,0.00012328,2]
[327269999,1715953835505,-500.0,0.00012328,2]
[327270000,1715953835514,-500.0,0.00012328,2]
[327270001,1715953835524,-500.0,0.00012328,2]
[327270002,1715953835534,-500.0,0.00012328,2]
[327270003,1715953835544,-500.0,0.00012328,2]
[327270004,1715953835554,-500.0,0.00012328,2]
[327270005,1715953835565,-500.0,0.00012328,2]
[327270006,1715953835575,-151.0,0.00012328,2]
[327270007,1715953835585,-252.707903,0.00012328,2]
[327270008,1715953835595,-412.12988969,0.00012328,2]
[327270009,1715953835605,-252.707903,0.00012328,2]
[327270010,1715953835620,-500.0,0.00012328,2]
[327270011,1715953835629,-500.0,0.00012328,2]
[327270012,1715953835639,-500.0,0.00012328,2]
[327270013,1715953835648,-166.42,0.00012328,2]
[327270014,1715953835659,-500.0,0.00012328,2]
[327270015,1715953835668,-500.0,0.00012328,2]
[327270016,1715953835678,-500.0,0.00012328,2]
[327270017,1715953835689,-500.0,0.00012328,2]
[327270018,1715953835699,-500.0,0.00012328,2]
[327270019,1715953835708,-500.0,0.00012328,2]
[327270020,1715953835718,-500.0,0.00012328,2]
[327270021,1715953835727,-500.0,0.00012328,2]
[327270022,1715953835738,-500.0,0.00012328,2]
[327270023,1715953835748,-500.0,0.00012328,2]
[327270024,1715953835757,-500.0,0.00012328,2]
[327270025,1715953835767,-500.0,0.00012328,2]
[327270026,1715953835777,-580.29076708,0.00012328,2]
[327270027,1715953835787,-500.0,0.00012328,2]
[327270028,1715953835797,-613.45,0.00012328,2]
[327270029,1715953835807,-358.2472582,0.00012328,2]
[327270030,1715953835817,-500.0,0.00012328,2]
[327270031,1715953835827,-351.90824224,0.00012328,2]
[327270032,1715953835837,-397.63,0.00012328,2]
[327270033,1715953835847,-151.0,0.00012328,2]
[327270034,1715953835857,-151.0,0.00012328,2]
[327270035,1715953835867,-500.0,0.00012328,2]
[327270036,1715953835877,-500.0,0.00012328,2]
[327270037,1715953835887,-500.0,0.00012328,2]
[327270038,1715953835898,-500.0,0.00012328,2]
[327270039,1715953835908,-500.0,0.00012328,2]
[327270040,1715953835918,-500.0,0.00012328,2]
[327270041,1715953835927,-500.0,0.00012328,2]
[327270042,1715953835937,-500.0,0.00012328,2]
[327270043,1715953835947,-500.0,0.00012328,2]
[327270044,1715953835957,-500.0,0.00012328,2]
[327270045,1715953835967,-500.0,0.00012328,2]
[327270046,1715953835977,-483.55318941,0.00012328,2]
[327270047,1715953835987,-500.0,0.00012328,2]
[327270048,1715953835997,-500.0,0.00012328,2]
[327270049,1715953836006,-500.0,0.00012328,2]
[327270050,1715953836016,-500.0,0.00012328,2]
[327270051,1715953836027,-500.0,0.00012328,2]
[327270052,1715953836037,-500.0,0.00012328,2]
[327270053,1715953836048,-500.0,0.00012328,2]
[327270054,1715953836058,-500.0,0.00012328,2]
[327270055,1715953836068,-500.0,0.00012328,2]
[327270056,1715953836079,-500.0,0.00012328,2]
[327270057,1715953836089,-500.0,0.00012328,2]
[327270058,1715953836099,-500.0,0.00012328,2]
[327270059,1715953836109,-500.0,0.00012328,2]
[327270060,1715953836119,-500.0,0.00012328,2]
[327270061,1715953836129,-500.0,0.00012328,2]
[327270062,1715953836140,-500.0,0.00012328,2]
[327270063,1715953836150,-500.0,0.00012328,2]
[327270064,1715953836159,-500.0,0.00012328,2]
[327270065,1715953836169,-500.0,0.00012328,2]
[327270066,1715953836178,-500.0,0.00012328,2]
[327270067,1715953836188,-500.0,0.00012328,2]
[327270068,1715953836198,-500.0,0.00012328,2]
[327270069,1715953836207,-500.0,0.00012328,2]
[327270070,1715953836217,-500.0,0.00012328,2]
[327270071,1715953836226,-560.75,0.00012328,2]
[327270072,1715953836236,-500.0,0.00012328,2]
[327270073,1715953836246,-2012.18,0.00012328,2]
[327270074,1715953836256,-2012.18,0.00012328,2]
[327270075,1715953836265,-2012.18,0.00012328,2]
[327270076,1715953836275,-842.189225,0.00012328,2]
[327270077,1715953836284,-842.189225,0.00012328,2]
[327270078,1715953836294,-528.55,0.00012328,2]
[327270079,1715953836303,-528.55,0.00012328,2]
[327270080,1715953836313,-151.0,0.00012328,2]
[327270081,1715953836323,-528.55,0.00012328,2]
[327270082,1715953836334,-528.55,0.00012328,2]
[327270083,1715953836344,-528.55,0.00012328,2]
[327270084,1715953836354,-500.0,0.00012328,2]
[327270085,1715953836363,-566.19034419,0.00012328,2]
[327270086,1715953836372,-500.0,0.00012328,2]
[327270087,1715953836382,-500.0,0.00012328,2]
[327270088,1715953836391,-500.0,0.00012328,2]
[327270089,1715953836401,-595.38437962,0.00012328,2]
[327270090,1715953836411,-500.0,0.00012328,2]
[327270091,1715953836421,-151.0,0.00012328,2]
[327270092,1715953836431,-500.0,0.00012328,2]
[327270093,1715953836441,-500.0,0.00012328,2]
[327270094,1715953836452,-500.0,0.00012328,2]
[327270095,1715953836462,-178.03842842,0.00012328,2]
[327270096,1715953836471,-500.0,0.00012328,2]
[327270097,1715953836481,-500.0,0.00012328,2]
[327270098,1715953836491,-500.0,0.00012328,2]
[327270099,1715953836500,-500.0,0.00012328,2]
[327270100,1715953836510,-500.0,0.00012328,2]
[327270101,1715953836520,-514.52,0.00012328,2]
[327270102,1715953836530,-559.02919874,0.00012328,2]
[327270103,1715953836539,-500.0,0.00012328,2]
[327270104,1715953836549,-500.0,0.00012328,2]
[327270105,1715953836558,-500.0,0.00012328,2]
[327270106,1715953836568,-500.0,0.00012328,2]
[327270107,1715953836579,-246.61843158,0.00012328,2]
[327270108,1715953836589,-500.0,0.00012328,2]
[327270109,1715953836601,-500.0,0.00012328,2]
[327270110,1715953836614,-500.0,0.00012328,2]
[327270111,1715953836623,-3775.57,0.00012328,2]
[327270112,1715953836633,-3775.57,0.00012328,2]
[327270113,1715953836643,-3775.57,0.00012328,2]
[327270114,1715953836654,-3775.57,0.00012328,2]
[327270115,1715953836663,-3775.57,0.00012328,2]
[327270116,1715953836673,-500.0,0.00012328,2]
[327270117,1715953836683,-500.0,0.00012328,2]
[327270118,1715953836696,-500.0,0.00012328,2]
[327270119,1715953836704,-1224.624918,0.00012328,2]
[327270120,1715953836712,-500.0,0.00012328,2]
[327270121,1715953836721,-500.0,0.00012328,2]
[327270122,1715953836730,-500.0,0.00012328,2]
[327270123,1715953836740,-500.0,0.00012328,2]
[327270124,1715953836749,-500.0,0.00012328,2]
[327270125,1715953836759,-420.22,0.00012328,2]
[327270126,1715953836769,-180.588753,0.00012328,2]
[327270127,1715953836778,-1224.624918,0.00012328,2]
[327270128,1715953836788,-180.588753,0.00012328,2]
[327270129,1715953836798,-695.72,0.00012328,2]
[327270130,1715953836808,-500.0,0.00012328,2]
[327270131,1715953836817,-695.72,0.00012328,2]
[327270132,1715953836828,-198.39314282,0.00012328,2]
[327270133,1715953836838,-500.0,0.00012328,2]
[327270134,1715953836848,-695.72,0.00012328,2]
[327270135,1715953836858,-383.11918009,0.00012328,2]
[327270136,1715953836867,-695.72,0.00012328,2]
[327270137,1715953836877,-695.72,0.00012328,2]
[327270138,1715953836892,-904.36,0.00012328,2]
[327270139,1715953836901,-904.36,0.00012328,2]
[327270140,1715953836911,-904.36,0.00012328,2]
[327270141,1715953836922,-904.36,0.00012328,2]
[327270142,1715953836932,-904.36,0.00012328,2]